[Event "EYCC Open-U14 2019"]
[Site "Bratislava"]
[Date "2019.08.07"]
[Round "6.38"]
[White "Protassov, Vlad"]
[Black "Djurovic, Peko"]
[Result "1/2-1/2"]
[ECO "D08"]
[WhiteElo "1898"]
[BlackElo "2048"]
[Annotator "NA"]
[PlyCount "48"]
[EventDate "2019.08.02"]
[EventType "swiss"]
[EventCountry "SVK"]
[SourceTitle "playchess.com"]
[Source "ChessBase"]
[SourceQuality "1"]
[TimeControl "40/5400+30:1800+30"]

1. d4 {[%emt 0:00:00]} d5 {[%emt 0:00:00]} 2. c4 {[%emt 0:00:00]} e5 {[%emt 0:02:48]} 3. dxe5 {[%emt 0:00:00]} d4 {[%emt 0:00:06]} 4. Nf3 {[%emt 0:00:00]} Nc6 {[%emt 0:00:04]} 5. a3 {[%emt 0:00:06]} Nge7 {[%emt 0:00:23]} 6. b4 {[%emt 0:01:55]} Ng6 {[%emt 0:00:23]} 7. Bb2 {[%emt 0:06:12]} Ngxe5 {[%emt 0:04:08]} 8. Nxe5 {[%emt 0:01:03]} Nxe5 {[%emt 0:00:06]} 9. Qxd4 {[%emt 0:00:06]} Qxd4 {[%emt 0:00:13]} 10. Bxd4 {[%emt 0:00:06]} Nxc4 {[%emt 0:00:10]} 11. e3 {[%emt 0:00:37]} Be6 {[%emt 0:00:37]} 12. Be2 {[%emt 0:00:30]} a5 {[%emt 0:01:19]} 13. b5 {[%emt 0:00:37]} Bd6 {[%emt 0:02:53]} 14. O-O {[%emt 0:01:40]} O-O {[%emt 0:03:06]} 15. Rc1 {[%emt 0:02:13]} Ne5 {[%emt 0:00:57]} 16. Nc3 {[%emt 0:01:06]} c5 {[%emt 0:01:22]} 17. bxc6 {[%emt 0:09:00]} Nxc6 {[%emt 0:02:22]} 18. Nb5 {[%emt 0:00:05]} Nxd4 {[%emt 0:00:27]} 19. Nxd4 {[%emt 0:00:07]} Rfc8 {[%emt 0:01:21]} 20. Nxe6 {[%emt 0:01:58]} Rxc1+ {[%emt 0:00:24]} 21. Rxc1 {[%emt 0:00:08]} fxe6 {[%emt 0:00:03]} 22. a4 {[%emt 0:00:07]} Kf7 {[%emt 0:00:27]} 23. g4 {[%emt 0:00:20]} Ke7 {[%emt 0:00:36]} 24. Kg2 {[%emt 0:00:30]} g5 {[%emt 0:00:29]} 1/2-1/2

[Event "EYCC Open-U14 2019"]
[Site "Bratislava"]
[Date "2019.08.07"]
[Round "6.39"]
[White "Grahn, Vidar"]
[Black "Falkevall, Axel"]
[Result "1/2-1/2"]
[ECO "A46"]
[WhiteElo "1980"]
[BlackElo "2067"]
[Annotator "NA"]
[PlyCount "29"]
[EventDate "2019.08.02"]
[EventType "swiss"]
[EventCountry "SVK"]
[SourceTitle "playchess.com"]
[Source "ChessBase"]
[SourceQuality "1"]
[TimeControl "40/5400+30:1800+30"]

1. d4 {[%emt 0:00:00]} Nf6 {[%emt 0:00:00]} 2. Nf3 {[%emt 0:00:00]} e6 {[%emt 0:00:00]} 3. e3 {[%emt 0:00:00]} d5 {[%emt 0:00:34]} 4. b3 {[%emt 0:00:25]} c5 {[%emt 0:00:41]} 5. Bb2 {[%emt 0:00:29]} Nc6 {[%emt 0:00:58]} 6. Bd3 {[%emt 0:00:07]} cxd4 {[%emt 0:01:45]} 7. exd4 {[%emt 0:01:35]} Bd6 {[%emt 0:00:17]} 8. a3 {[%emt 0:04:22]} O-O {[%emt 0:03:41]} 9. O-O {[%emt 0:03:18]} b6 {[%emt 0:10:08]} 10. Nbd2 {[%emt 0:04:21]} Bb7 {[%emt 0:00:44]} 11. Ne5 {[%emt 0:05:30]} Ne7 {[%emt 0:10:15]} 12. Qe2 {[%emt 0:06:49]} Rc8 {[%emt 0:03:32]} 13. f4 {[%emt 0:05:59]} Qc7 {[%emt 0:06:16]} 14. Rf2 {[%emt 0:03:49]} Ng6 {[%emt 0:13:12]} 15. g4 {[%emt 0:10:28]} 1/2-1/2

[Event "EYCC Open-U14 2019"]
[Site "Bratislava"]
[Date "2019.08.07"]
[Round "6.40"]
[White "Brnusak, Tomas"]
[Black "Antal, Hunor-Zoltan"]
[Result "1/2-1/2"]
[ECO "D25"]
[WhiteElo "2032"]
[BlackElo "1980"]
[Annotator "NA"]
[PlyCount "119"]
[EventDate "2019.08.02"]
[EventType "swiss"]
[EventCountry "SVK"]
[SourceTitle "playchess.com"]
[Source "ChessBase"]
[SourceQuality "1"]
[TimeControl "40/5400+30:1800+30"]

1. d4 {[%emt 0:00:00]} d5 {[%emt 0:00:00]} 2. c4 {[%emt 0:00:24]} dxc4 {[%emt 0:00:00]} 3. e3 {[%emt 0:00:28]} Nf6 {[%emt 0:00:00]} 4. Nf3 {[%emt 0:00:45]} a6 {[%emt 0:00:08]} 5. Bxc4 {[%emt 0:00:51]} e6 {[%emt 0:00:15]} 6. O-O {[%emt 0:00:37]} Be7 {[%emt 0:00:40]} 7. b3 {[%emt 0:01:08]} b5 {[%emt 0:01:10]} 8. Be2 {[%emt 0:00:55]} O-O {[%emt 0:00:59]} 9. Bb2 {[%emt 0:00:37]} Bb7 {[%emt 0:00:29]} 10. Nbd2 {[%emt 0:00:54]} c5 {[%emt 0:00:55]} 11. a4 {[%emt 0:01:32]} b4 {[%emt 0:01:24]} 12. Rc1 {[%emt 0:01:09]} Nbd7 {[%emt 0:00:20]} 13. Nc4 {[%emt 0:01:24]} Rc8 {[%emt 0:03:48]} 14. h3 {[%emt 0:06:02]} Ne4 {[%emt 0:02:54]} 15. Nfe5 {[%emt 0:07:48]} Nxe5 {[%emt 0:03:51]} 16. Nxe5 {[%emt 0:02:42]} Bf6 {[%emt 0:02:10]} 17. Bf3 {[%emt 0:09:21]} Qe7 {[%emt 0:09:48]} 18. Qd3 {[%emt 0:16:11]} Bxe5 {[%emt 0:01:45]} 19. Bxe4 {[%emt 0:01:29]} Bxe4 {[%emt 0:00:20]} 20. Qxe4 {[%emt 0:00:02]} Bf6 {[%emt 0:00:23]} 21. Rfd1 {[%emt 0:02:50]} Rfd8 {[%emt 0:03:03]} 22. Rc4 {[%emt 0:03:39]} cxd4 {[%emt 0:01:51]} 23. Rxc8 {[%emt 0:00:42]} Rxc8 {[%emt 0:00:00]} 24. Bxd4 {[%emt 0:00:18]} Rd8 {[%emt 0:02:20]} 25. Rc1 {[%emt 0:00:28]} Bxd4 {[%emt 0:01:21]} 26. exd4 {[%emt 0:00:07]} g6 {[%emt 0:05:18]} 27. Qe5 {[%emt 0:09:30]} Qd6 {[%emt 0:03:38]} 28. Rc8 {[%emt 0:00:48]} Qd7 {[%emt 0:02:39]} 29. Rxd8+ {[%emt 0:04:46]} Qxd8 {[%emt 0:00:09]} 30. a5 {[%emt 0:00:12]} Qc8 {[%emt 0:07:01]} 31. Qc5 {[%emt 0:01:58]} Qb7 {[%emt 0:00:13]} 32. g3 {[%emt 0:08:58]} Kg7 {[%emt 0:05:34]} 33. Qd6 {[%emt 0:06:44]} h6 {[%emt 0:05:45]} 34. h4 {[%emt 0:00:34]} h5 {[%emt 0:00:22]} 35. Qb6 {[%emt 0:02:30]} Qe4 {[%emt 0:00:20]} 36. Qxb4 {[%emt 0:00:06]} Qb1+ {[%emt 0:00:05]} 37. Kg2 {[%emt 0:00:21]} Qe4+ {[%emt 0:00:12]} 38. Kf1 {[%emt 0:00:29]} Qb1+ {[%emt 0:00:59]} 39. Ke2 {[%emt 0:00:08]} Qe4+ {[%emt 0:01:18]} 40. Kd2 {[%emt 0:00:00]} Qf3 {[%emt 0:00:00]} 41. Qc3 {[%emt 0:02:03]} Qxf2+ {[%emt 0:00:57]} 42. Kc1 {[%emt 0:00:06]} Qf1+ {[%emt 0:01:04]} 43. Kb2 {[%emt 0:00:14]} Qg2+ {[%emt 0:00:26]} 44. Ka3 {[%emt 0:00:16]} Qd5 {[%emt 0:00:38]} 45. Qc5 {[%emt 0:01:04]} Qh1 {[%emt 0:00:22]} 46. Qe5+ {[%emt 0:03:28]} Kg8 {[%emt 0:00:33]} 47. Kb4 {[%emt 0:00:43]} Qb7+ {[%emt 0:00:24]} 48. Kc4 {[%emt 0:00:12]} Qg2 {[%emt 0:01:38]} 49. Kc5 {[%emt 0:02:11]} Qb7 {[%emt 0:02:30]} 50. Kc4 {[%emt 0:03:59]} Qg2 {[%emt 0:00:10]} 51. Qb8+ {[%emt 0:03:27]} Kg7 {[%emt 0:00:22]} 52. Kc5 {[%emt 0:01:08]} Qd5+ {[%emt 0:00:35]} 53. Kb6 {[%emt 0:02:04]} Qxb3+ {[%emt 0:00:50]} 54. Ka7 {[%emt 0:00:07]} Qc4 {[%emt 0:01:02]} 55. Qe5+ {[%emt 0:00:43]} Kg8 {[%emt 0:00:48]} 56. Qc5 {[%emt 0:00:05]} Qd3 {[%emt 0:00:31]} 57. Qc8+ {[%emt 0:00:30]} Kg7 {[%emt 0:00:11]} 58. Qxa6 {[%emt 0:00:39]} Qxd4+ {[%emt 0:00:05]} 59. Qb6 {[%emt 0:00:10]} Qd7+ {[%emt 0:00:12]} 60. Qb7 {[%emt 0:01:24]} 1/2-1/2

[Event "EYCC Open-U14 2019"]
[Site "Bratislava"]
[Date "2019.08.07"]
[Round "6.41"]
[White "Schlegel, Igor"]
[Black "Chlpek, Daniel"]
[Result "1-0"]
[ECO "B90"]
[WhiteElo "1968"]
[BlackElo "1912"]
[Annotator "NA"]
[PlyCount "113"]
[EventDate "2019.08.02"]
[EventType "swiss"]
[EventCountry "SVK"]
[SourceTitle "playchess.com"]
[Source "ChessBase"]
[SourceQuality "1"]
[TimeControl "40/5400+30:1800+30"]

1. e4 {[%emt 0:00:00]} c5 {[%emt 0:00:00]} 2. Nf3 {[%emt 0:00:00]} d6 {[%emt 0:00:00]} 3. d4 {[%emt 0:00:00]} cxd4 {[%emt 0:00:00]} 4. Nxd4 {[%emt 0:00:00]} Nf6 {[%emt 0:00:15]} 5. Nc3 {[%emt 0:00:00]} a6 {[%emt 0:00:13]} 6. Bc4 {[%emt 0:00:27]} e6 {[%emt 0:00:31]} 7. Bb3 {[%emt 0:00:19]} Be7 {[%emt 0:01:51]} 8. g4 {[%emt 0:01:25]} h6 {[%emt 0:15:46]} 9. Be3 {[%emt 0:03:19]} Bd7 {[%emt 0:05:03]} 10. f3 {[%emt 0:01:44]} Nc6 {[%emt 0:01:32]} 11. Qd2 {[%emt 0:01:55]} b5 {[%emt 0:05:07]} 12. O-O-O {[%emt 0:17:48]} Ne5 {[%emt 0:08:43]} 13. h4 {[%emt 0:05:51]} Qc7 {[%emt 0:13:09]} 14. g5 {[%emt 0:02:01]} hxg5 {[%emt 0:05:03]} 15. hxg5 {[%emt 0:00:36]} Nh5 {[%emt 0:00:12]} 16. Kb1 {[%emt 0:27:11]} O-O-O {[%emt 0:01:11]} 17. Nf5 {[%emt 0:01:34]} Bc6 {[%emt 0:05:37]} 18. Nxe7+ {[%emt 0:05:21]} Qxe7 {[%emt 0:00:07]} 19. Bb6 {[%emt 0:01:55]} Rd7 {[%emt 0:00:25]} 20. f4 {[%emt 0:00:48]} Ng6 {[%emt 0:03:47]} 21. Rdf1 {[%emt 0:09:11]} Kb7 {[%emt 0:03:10]} 22. Qf2 {[%emt 0:05:16]} Qe8 {[%emt 0:09:07]} 23. Ba5 {[%emt 0:00:53]} Ka8 {[%emt 0:00:29]} 24. Ne2 {[%emt 0:04:49]} Bxe4 {[%emt 0:03:42]} 25. Rxh5 {[%emt 0:00:19]} Rxh5 {[%emt 0:00:17]} 26. Ng3 {[%emt 0:00:04]} Rh4 {[%emt 0:00:31]} 27. Nxe4 {[%emt 0:00:18]} Rxf4 {[%emt 0:00:23]} 28. Qg2 {[%emt 0:00:45]} Rxf1+ {[%emt 0:00:16]} 29. Qxf1 {[%emt 0:00:04]} Qc8 {[%emt 0:02:07]} 30. c4 {[%emt 0:03:45]} d5 {[%emt 0:01:02]} 31. cxd5 {[%emt 0:00:30]} exd5 {[%emt 0:00:06]} 32. Nc3 {[%emt 0:00:10]} Qc6 {[%emt 0:03:54]} 33. Qf3 {[%emt 0:01:00]} Ne7 {[%emt 0:01:42]} 34. Qxf7 {[%emt 0:03:33]} d4 {[%emt 0:00:24]} 35. Nd1 {[%emt 0:01:16]} Qg6+ {[%emt 0:01:20]} 36. Qxg6 {[%emt 0:00:14]} Nxg6 {[%emt 0:00:12]} 37. Kc1 {[%emt 0:02:57]} Kb7 {[%emt 0:01:40]} 38. Nf2 {[%emt 0:00:29]} Ne5 {[%emt 0:02:04]} 39. Bc2 {[%emt 0:01:10]} d3 {[%emt 0:01:22]} 40. Bb1 {[%emt 0:00:00]} Nc4 {[%emt 0:00:00]} 41. Bd2 {[%emt 0:01:56]} Rd5 {[%emt 0:08:20]} 42. g6 {[%emt 0:01:57]} Ne5 {[%emt 0:02:19]} 43. Bc3 {[%emt 0:03:00]} Nxg6 {[%emt 0:01:08]} 44. Bxd3 Rg5 {[%emt 0:00:50]} 45. Bxg7 {[%emt 0:01:38]} Rg1+ {[%emt 0:00:51]} 46. Kc2 {[%emt 0:00:53]} Ne7 {[%emt 0:01:28]} 47. Bd4 {[%emt 0:00:33]} Rg8 {[%emt 0:00:43]} 48. Ne4 {[%emt 0:01:08]} Nc6 {[%emt 0:03:10]} 49. Bc5 {[%emt 0:00:56]} Rg2+ {[%emt 0:00:54]} 50. Kc3 {[%emt 0:02:39]} b4+ {[%emt 0:02:12]} 51. Kb3 {[%emt 0:04:59]} a5 {[%emt 0:00:08]} 52. Nd6+ {[%emt 0:01:18]} Kc7 {[%emt 0:00:52]} 53. Nc4 {[%emt 0:01:21]} Rg5 {[%emt 0:01:58]} 54. Bb6+ {[%emt 0:00:57]} Kb7 {[%emt 0:00:39]} 55. Ka4 {[%emt 0:01:04]} Rg4 {[%emt 0:00:56]} 56. Bxa5 {[%emt 0:03:00]} Rd4 {[%emt 0:00:11]} 57. Be2 {[%emt 0:00:19]} 1-0

[Event "EYCC Open-U14 2019"]
[Site "Bratislava"]
[Date "2019.08.07"]
[Round "6.42"]
[White "Lopez Varela, Pablo"]
[Black "Soucek, Petr"]
[Result "1-0"]
[ECO "C55"]
[WhiteElo "2131"]
[BlackElo "1725"]
[Annotator "NA"]
[PlyCount "83"]
[EventDate "2019.08.02"]
[EventType "swiss"]
[EventCountry "SVK"]
[SourceTitle "playchess.com"]
[Source "ChessBase"]
[SourceQuality "1"]
[TimeControl "40/5400+30:1800+30"]

1. e4 {[%emt 0:00:00]} e5 {[%emt 0:00:00]} 2. Nf3 {[%emt 0:00:00]} Nc6 {[%emt 0:00:04]} 3. Bc4 {[%emt 0:00:00]} Nf6 {[%emt 0:00:07]} 4. d3 {[%emt 0:00:00]} Be7 {[%emt 0:00:19]} 5. O-O {[%emt 0:00:00]} O-O {[%emt 0:00:22]} 6. Re1 {[%emt 0:00:05]} d6 {[%emt 0:00:09]} 7. a4 {[%emt 0:00:10]} Na5 {[%emt 0:00:29]} 8. Ba2 {[%emt 0:00:05]} c5 {[%emt 0:00:28]} 9. Nc3 {[%emt 0:01:57]} a6 {[%emt 0:00:45]} 10. Bg5 {[%emt 0:03:44]} Rb8 {[%emt 0:02:18]} 11. Bxf6 {[%emt 0:05:54]} Bxf6 {[%emt 0:01:16]} 12. Nd5 {[%emt 0:00:15]} Nc6 {[%emt 0:01:40]} 13. c3 {[%emt 0:12:03]} b5 {[%emt 0:07:35]} 14. axb5 {[%emt 0:00:34]} axb5 {[%emt 0:02:27]} 15. b4 {[%emt 0:07:18]} Ne7 16. bxc5 {[%emt 0:05:33]} dxc5 {[%emt 0:14:39]} 17. Nxf6+ {[%emt 0:08:51]} gxf6 {[%emt 0:00:26]} 18. d4 {[%emt 0:00:00]} Ng6 {[%emt 0:05:51]} 19. dxc5 {[%emt 0:10:25]} Qc7 {[%emt 0:00:32]} 20. Qd6 {[%emt 0:04:11]} Qxd6 {[%emt 0:00:11]} 21. cxd6 {[%emt 0:00:02]} Rd8 {[%emt 0:00:11]} 22. Red1 {[%emt 0:00:19]} Rb6 {[%emt 0:00:25]} 23. c4 {[%emt 0:00:33]} bxc4 {[%emt 0:02:26]} 24. Bxc4 {[%emt 0:01:20]} Rbxd6 {[%emt 0:01:46]} 25. Rxd6 {[%emt 0:03:00]} Rxd6 {[%emt 0:00:05]} 26. Ra8 {[%emt 0:01:03]} Rc6 {[%emt 0:02:02]} 27. Nd2 {[%emt 0:00:22]} Kg7 {[%emt 0:05:01]} 28. Ra7 {[%emt 0:00:51]} Be6 {[%emt 0:02:13]} 29. Bxe6 {[%emt 0:00:15]} Rxe6 {[%emt 0:00:06]} 30. Nf1 {[%emt 0:00:25]} Nf4 {[%emt 0:04:18]} 31. g3 {[%emt 0:00:55]} Nh3+ {[%emt 0:00:25]} 32. Kg2 {[%emt 0:00:03]} Ng5 {[%emt 0:00:11]} 33. Ra4 {[%emt 0:00:05]} Rc6 {[%emt 0:01:46]} 34. Ne3 {[%emt 0:00:08]} Rc1 {[%emt 0:01:33]} 35. Nf5+ {[%emt 0:00:32]} Kg6 {[%emt 0:00:39]} 36. h4 {[%emt 0:00:39]} Ne6 {[%emt 0:01:58]} 37. Ra8 {[%emt 0:01:55]} Kh5 {[%emt 0:07:37]} 38. Rg8 {[%emt 0:02:06]} Nf4+ {[%emt 0:03:37]} 39. gxf4 {[%emt 0:00:16]} exf4 {[%emt 0:00:15]} 40. Kf3 {[%emt 0:00:00]} Rc3+ {[%emt 0:00:00]} 41. Kxf4 {[%emt 0:01:32]} h6 {[%emt 0:01:03]} 42. Rh8 {[%emt 0:00:12]} 1-0

[Event "EYCC Open-U14 2019"]
[Site "Bratislava"]
[Date "2019.08.07"]
[Round "6.43"]
[White "Grzesik, Gracjan"]
[Black "Putar, Leon"]
[Result "1/2-1/2"]
[ECO "A25"]
[WhiteElo "2004"]
[BlackElo "1742"]
[Annotator "NA"]
[PlyCount "135"]
[EventDate "2019.08.02"]
[EventType "swiss"]
[EventCountry "SVK"]
[SourceTitle "playchess.com"]
[Source "ChessBase"]
[SourceQuality "1"]
[TimeControl "40/5400+30:1800+30"]

1. c4 {[%emt 0:00:00]} e5 {[%emt 0:00:00]} 2. Nc3 {[%emt 0:00:00]} Nc6 {[%emt 0:00:03]} 3. g3 {[%emt 0:00:20]} Nf6 {[%emt 0:00:34]} 4. Bg2 {[%emt 0:00:47]} Bc5 {[%emt 0:02:06]} 5. e3 {[%emt 0:02:45]} O-O {[%emt 0:01:24]} 6. Nge2 {[%emt 0:00:50]} Re8 {[%emt 0:02:51]} 7. d3 {[%emt 0:04:09]} a6 {[%emt 0:01:55]} 8. a3 {[%emt 0:02:39]} d6 {[%emt 0:02:28]} 9. O-O {[%emt 0:01:53]} Ba7 {[%emt 0:03:30]} 10. b4 {[%emt 0:07:42]} Rb8 {[%emt 0:05:00]} 11. Bb2 {[%emt 0:05:27]} Bf5 {[%emt 0:03:42]} 12. h3 {[%emt 0:07:32]} Qd7 {[%emt 0:01:24]} 13. Kh2 {[%emt 0:01:44]} e4 {[%emt 0:01:21]} 14. d4 {[%emt 0:10:02]} d5 {[%emt 0:03:04]} 15. cxd5 {[%emt 0:08:46]} Ne7 {[%emt 0:02:58]} 16. Na4 {[%emt 0:07:46]} Nexd5 {[%emt 0:01:32]} 17. Nc5 {[%emt 0:02:45]} Qd6 {[%emt 0:01:57]} 18. Qd2 {[%emt 0:03:47]} b5 {[%emt 0:05:07]} 19. Rfc1 {[%emt 0:08:48]} Red8 {[%emt 0:08:59]} 20. Qe1 {[%emt 0:08:02]} Ra8 {[%emt 0:07:39]} 21. Nb7 {[%emt 0:03:01]} Qd7 {[%emt 0:00:52]} 22. Nxd8 {[%emt 0:00:13]} Rxd8 {[%emt 0:00:06]} 23. Nc3 {[%emt 0:02:24]} Nb6 {[%emt 0:00:11]} 24. Qe2 {[%emt 0:01:38]} Nc4 {[%emt 0:00:12]} 25. a4 {[%emt 0:01:54]} c6 {[%emt 0:00:45]} 26. Qc2 {[%emt 0:02:16]} Bb8 {[%emt 0:01:19]} 27. axb5 {[%emt 0:01:27]} axb5 {[%emt 0:00:20]} 28. Nb1 {[%emt 0:03:46]} Qd6 {[%emt 0:00:48]} 29. Qe2 {[%emt 0:01:29]} Nd5 {[%emt 0:02:11]} 30. Nc3 {[%emt 0:00:32]} Ndxe3 {[%emt 0:08:47]} 31. Bxe4 {[%emt 0:00:27]} Kf8 {[%emt 0:03:49]} 32. Rab1 {[%emt 0:00:33]} Re8 {[%emt 0:00:09]} 33. Bxf5 {[%emt 0:00:29]} Nxf5 {[%emt 0:00:06]} 34. Qg4 {[%emt 0:00:29]} g6 {[%emt 0:00:14]} 35. Ne4 {[%emt 0:00:28]} Rxe4 {[%emt 0:00:12]} 36. Qxe4 {[%emt 0:00:27]} Nxg3 {[%emt 0:00:05]} 37. Qg2 {[%emt 0:00:35]} Nh5+ {[%emt 0:01:23]} 38. Kg1 {[%emt 0:00:17]} Nf4 {[%emt 0:00:02]} 39. Qg4 {[%emt 0:00:44]} f5 {[%emt 0:00:14]} 40. Qf3 {[%emt 0:00:00]} Ne2+ {[%emt 0:00:00]} 41. Kf1 {[%emt 0:07:21]} Nd2+ {[%emt 0:01:02]} 42. Kxe2 {[%emt 0:00:24]} Nxf3 {[%emt 0:00:02]} 43. Kxf3 {[%emt 0:00:12]} Qf4+ {[%emt 0:00:05]} 44. Ke2 {[%emt 0:01:08]} Qe4+ {[%emt 0:00:05]} 45. Kf1 {[%emt 0:01:12]} Qh1+ {[%emt 0:00:07]} 46. Ke2 {[%emt 0:00:03]} Qxh3 {[%emt 0:00:07]} 47. d5 {[%emt 0:10:50]} Qg4+ {[%emt 0:00:17]} 48. Kf1 {[%emt 0:00:34]} h5 {[%emt 0:05:15]} 49. Rxc6 {[%emt 0:05:41]} Qf4 {[%emt 0:04:27]} 50. Rf6+ {[%emt 0:03:40]} Kg8 {[%emt 0:02:06]} 51. Rxg6+ {[%emt 0:00:18]} Kf8 {[%emt 0:00:56]} 52. Re1 {[%emt 0:04:00]} Qc4+ {[%emt 0:02:15]} 53. Kg1 {[%emt 0:00:38]} Qxb4 {[%emt 0:11:27]} 54. Re2 {[%emt 0:01:28]} h4 {[%emt 0:03:11]} 55. Rf6+ {[%emt 0:00:26]} Kg8 {[%emt 0:00:17]} 56. Rg6+ {[%emt 0:00:26]} Kf8 {[%emt 0:00:52]} 57. Rf6+ {[%emt 0:00:17]} Kg7 {[%emt 0:01:23]} 58. Rb6+ {[%emt 0:00:50]} Kf7 {[%emt 0:00:25]} 59. Rb7+ {[%emt 0:00:30]} Kg6 {[%emt 0:01:19]} 60. Rxb8 {[%emt 0:00:32]} Qg4+ {[%emt 0:00:11]} 61. Kf1 {[%emt 0:00:19]} Qh3+ {[%emt 0:00:03]} 62. Ke1 {[%emt 0:00:35]} Qh1+ {[%emt 0:00:03]} 63. Kd2 {[%emt 0:00:08]} Qxd5+ {[%emt 0:00:03]} 64. Ke1 {[%emt 0:00:47]} Qh1+ {[%emt 0:00:08]} 65. Kd2 {[%emt 0:00:04]} Qd5+ {[%emt 0:00:04]} 66. Ke1 {[%emt 0:00:52]} Qh1+ {[%emt 0:00:26]} 67. Kd2 {[%emt 0:00:06]} Qd5+ {[%emt 0:00:02]} 68. Ke1 {[%emt 0:00:59]} 1/2-1/2

[Event "EYCC Open-U14 2019"]
[Site "Bratislava"]
[Date "2019.08.07"]
[Round "6.44"]
[White "Petreski, Leonid"]
[Black "Zemach, Nadav"]
[Result "1/2-1/2"]
[ECO "C54"]
[WhiteElo "1644"]
[BlackElo "1997"]
[Annotator "NA"]
[PlyCount "77"]
[EventDate "2019.08.02"]
[EventType "swiss"]
[EventCountry "SVK"]
[SourceTitle "playchess.com"]
[Source "ChessBase"]
[SourceQuality "1"]
[TimeControl "40/5400+30:1800+30"]

1. e4 {[%emt 0:00:00]} e5 {[%emt 0:00:00]} 2. Nf3 {[%emt 0:00:00]} Nc6 {[%emt 0:00:00]} 3. Bc4 {[%emt 0:00:02]} Bc5 {[%emt 0:00:00]} 4. c3 {[%emt 0:00:21]} Nf6 {[%emt 0:00:00]} 5. d3 {[%emt 0:00:07]} O-O {[%emt 0:00:00]} 6. O-O {[%emt 0:00:24]} d5 {[%emt 0:00:03]} 7. exd5 {[%emt 0:01:20]} Nxd5 {[%emt 0:00:02]} 8. Re1 {[%emt 0:00:58]} Bg4 {[%emt 0:00:02]} 9. h3 {[%emt 0:02:33]} Bh5 {[%emt 0:00:01]} 10. g4 {[%emt 0:09:42]} Bg6 {[%emt 0:00:59]} 11. Nxe5 {[%emt 0:05:09]} Nxe5 {[%emt 0:07:21]} 12. Rxe5 {[%emt 0:00:43]} c6 {[%emt 0:06:25]} 13. Bxd5 {[%emt 0:17:19]} Bd6 {[%emt 0:04:25]} 14. Re1 {[%emt 0:06:00]} cxd5 {[%emt 0:01:36]} 15. Be3 {[%emt 0:01:55]} Qh4 {[%emt 0:04:17]} 16. Qf3 {[%emt 0:02:17]} Rad8 {[%emt 0:18:35]} 17. Bxa7 {[%emt 0:03:53]} f5 {[%emt 0:04:41]} 18. Nd2 {[%emt 0:05:20]} h5 {[%emt 0:03:03]} 19. gxh5 {[%emt 0:07:14]} Bxh5 {[%emt 0:00:30]} 20. Qxd5+ {[%emt 0:01:51]} Kh8 {[%emt 0:01:34]} 21. Qg2 {[%emt 0:01:45]} Rf6 {[%emt 0:02:26]} 22. Nf3 {[%emt 0:05:06]} Qf4 {[%emt 0:00:44]} 23. Ng5 {[%emt 0:08:28]} Rg6 {[%emt 0:02:29]} 24. Be3 {[%emt 0:02:36]} Rxg5 {[%emt 0:19:10]} 25. Qxg5 {[%emt 0:00:13]} Qh2+ {[%emt 0:02:12]} 26. Kf1 {[%emt 0:00:03]} Bf3 {[%emt 0:05:37]} 27. Red1 {[%emt 0:02:19]} Re8 {[%emt 0:02:58]} 28. Qg1 {[%emt 0:04:07]} Qxh3+ {[%emt 0:01:43]} 29. Ke1 {[%emt 0:00:03]} f4 {[%emt 0:00:29]} 30. Kd2 {[%emt 0:00:58]} fxe3+ {[%emt 0:00:21]} 31. fxe3 {[%emt 0:00:10]} Bxd1 {[%emt 0:01:26]} 32. Rxd1 {[%emt 0:00:07]} Kg8 {[%emt 0:01:50]} 33. Rf1 {[%emt 0:03:34]} Re6 {[%emt 0:02:08]} 34. Ke2 {[%emt 0:01:48]} Qh5+ {[%emt 0:01:28]} 35. Kd2 {[%emt 0:02:49]} Qh3 {[%emt 0:00:22]} 36. Ke2 {[%emt 0:01:04]} Qh5+ {[%emt 0:01:08]} 37. Kd2 {[%emt 0:02:43]} Rh6 {[%emt 0:03:29]} 38. Rf2 {[%emt 0:00:41]} Qd5 {[%emt 0:00:25]} 39. Qg2 {[%emt 0:01:05]} 1/2-1/2

[Event "EYCC Open-U14 2019"]
[Site "Bratislava"]
[Date "2019.08.07"]
[Round "6.45"]
[White "Vaupot, Luka"]
[Black "Bansal, Saahil"]
[Result "1/2-1/2"]
[ECO "E04"]
[WhiteElo "1939"]
[BlackElo "1547"]
[Annotator "NA"]
[PlyCount "26"]
[EventDate "2019.08.02"]
[EventType "swiss"]
[EventCountry "SVK"]
[SourceTitle "playchess.com"]
[Source "ChessBase"]
[SourceQuality "1"]
[TimeControl "40/5400+30:1800+30"]

1. d4 {[%emt 0:00:00]} Nf6 {[%emt 0:00:00]} 2. c4 {[%emt 0:00:00]} e6 {[%emt 0:00:00]} 3. g3 {[%emt 0:00:00]} d5 {[%emt 0:00:28]} 4. Nf3 {[%emt 0:00:00]} dxc4 {[%emt 0:01:59]} 5. Bg2 {[%emt 0:02:26]} a6 {[%emt 0:01:22]} 6. a4 {[%emt 0:11:15]} Nc6 {[%emt 0:07:15]} 7. O-O {[%emt 0:00:35]} Rb8 {[%emt 0:04:12]} 8. Qc2 {[%emt 0:18:49]} Nxd4 {[%emt 0:08:08]} 9. Nxd4 {[%emt 0:00:37]} Qxd4 {[%emt 0:00:21]} 10. Be3 {[%emt 0:02:41]} Qd8 {[%emt 0:03:01]} 11. Rd1 {[%emt 0:05:32]} Bd6 {[%emt 0:04:33]} 12. Qxc4 {[%emt 0:06:09]} O-O {[%emt 0:10:45]} 13. Nc3 {[%emt 0:00:43]} Qe7 {[%emt 0:04:53]} 1/2-1/2